[Event "1000GM Schev-C-A February 2024"]
[Site "Santa Clara"]
[Date "2024.02.25"]
[Round "4.4"]
[White "Rajaram, Rohan"]
[Black "Delgado Ramirez, Neuris"]
[Result "0-1"]
[ECO "E33"]
[WhiteElo "2151"]
[BlackElo "2517"]
[Annotator "RC"]
[PlyCount "140"]
[EventDate "2024.02.13"]
[EventType "schev"]
[EventCountry "USA"]
[SourceTitle "playchess.com"]
[Source "ChessBase"]
[SourceQuality "1"]
[TimeControl "5400+30"]

1. d4 {[%emt 0:02:30]} Nf6 {[%emt 0:02:19]} 2. c4 {[%emt 0:00:12]} Nc6 {[%emt 0:01:06]} 3. Nf3 {[%emt 0:00:30]} e6 {[%emt 0:00:09]} 4. Nc3 {[%emt 0:01:10]} Bb4 {[%emt 0:00:06]} 5. Qc2 {[%emt 0:01:33]} d6 {[%emt 0:01:17]} 6. Bg5 {[%emt 0:01:43]} h6 {[%emt 0:01:10]} 7. Bd2 {[%emt 0:00:36]} a5 {[%emt 0:00:47]} 8. e3 {[%emt 0:03:06]} e5 {[%emt 0:01:58]} 9. Be2 {[%emt 0:01:44]} O-O {[%emt 0:01:43]} 10. O-O {[%emt 0:01:42]} Bg4 {[%emt 0:01:37]} 11. d5 {[%emt 0:07:00]} Ne7 {[%emt 0:02:47]} 12. a3 {[%emt 0:01:11]} Bxc3 {[%emt 0:00:35]} 13. Bxc3 {[%emt 0:00:43]} Bf5 {[%emt 0:01:51]} 14. Qc1 {[%emt 0:06:53]} a4 {[%emt 0:03:54]} 15. Rd1 {[%emt 0:02:09]} Nd7 {[%emt 0:00:56]} 16. Bb4 {[%emt 0:01:20]} b6 {[%emt 0:00:06]} 17. Qc3 {[%emt 0:03:54]} Nc5 {[%emt 0:02:59]} 18. Nd2 {[%emt 0:02:58]} Bd7 {[%emt 0:00:23]} 19. Re1 {[%emt 0:01:54]} Ng6 {[%emt 0:00:32]} 20. b3 {[%emt 0:03:54]} axb3 {[%emt 0:01:18]} 21. Nxb3 {[%emt 0:00:27]} f5 {[%emt 0:01:24]} 22. Nd2 {[%emt 0:05:35]} Qg5 {[%emt 0:01:54]} 23. Nf3 {[%emt 0:02:55]} Qe7 {[%emt 0:00:05]} 24. Bxc5 {[%emt 0:02:28]} bxc5 {[%emt 0:00:37]} 25. Nd2 {[%emt 0:01:19]} e4 {[%emt 0:02:43]} 26. f4 {[%emt 0:01:15]} exf3 {[%emt 0:00:10]} 27. Nxf3 {[%emt 0:00:38]} Ra6 {[%emt 0:02:33]} 28. Ra2 {[%emt 0:03:45]} Rfa8 {[%emt 0:00:26]} 29. Kf2 {[%emt 0:02:19]} Ne5 {[%emt 0:02:48]} 30. h3 {[%emt 0:04:51]} Ra4 {[%emt 0:08:02]} 31. Nxe5 {[%emt 0:04:56]} dxe5 {[%emt 0:00:04]} 32. Kg1 {[%emt 0:00:19]} e4 {[%emt 0:00:19]} 33. Rb1 {[%emt 0:00:59]} R4a6 {[%emt 0:00:17]} 34. Rb7 {[%emt 0:00:59]} Qd6 {[%emt 0:01:46]} 35. Rb1 {[%emt 0:05:25]} Qg3 {[%emt 0:00:10]} 36. Rc1 {[%emt 0:00:59]} Rg6 {[%emt 0:00:30]} 37. Bf1 {[%emt 0:01:15]} Qxh3 {[%emt 0:00:19]} 38. Rf2 {[%emt 0:00:24]} Qg3 {[%emt 0:00:15]} 39. Ra2 {[%emt 0:03:32]} Qd6 {[%emt 0:02:13]} 40. Qe1 {[%emt 0:00:24]} Rg4 {[%emt 0:01:21]} 41. Be2 {[%emt 0:00:52]} Rg3 {[%emt 0:00:24]} 42. Qf2 {[%emt 0:01:04]} g5 {[%emt 0:00:06]} 43. Rf1 {[%emt 0:00:41]} Rf8 {[%emt 0:00:24]} 44. Bd1 {[%emt 0:01:44]} f4 {[%emt 0:00:52]} 45. exf4 {[%emt 0:00:22]} gxf4 {[%emt 0:00:13]} 46. Qe2 {[%emt 0:00:45]} Qe5 {[%emt 0:02:53]} 47. Qh5 {[%emt 0:02:25]} Qxh5 {[%emt 0:01:08]} 48. Bxh5 {[%emt 0:00:05]} f3 {[%emt 0:00:27]} 49. Raf2 {[%emt 0:00:37]} Rg5 {[%emt 0:00:25]} 50. Bxf3 {[%emt 0:00:22]} exf3 {[%emt 0:00:24]} 51. Rxf3 {[%emt 0:00:05]} Rxf3 {[%emt 0:00:23]} 52. Rxf3 {[%emt 0:00:05]} Rg4 {[%emt 0:00:38]} 53. Rb3 {[%emt 0:00:55]} Kf7 {[%emt 0:00:18]} 54. Rb7 {[%emt 0:00:10]} Ke7 {[%emt 0:00:07]} 55. Rxc7 {[%emt 0:00:06]} Rxc4 {[%emt 0:00:08]} 56. Kf2 {[%emt 0:00:11]} Kd6 {[%emt 0:00:26]} 57. Ra7 {[%emt 0:00:16]} Ra4 {[%emt 0:00:19]} 58. Rb7 {[%emt 0:00:07]} h5 {[%emt 0:00:16]} 59. g3 {[%emt 0:00:13]} Rxa3 {[%emt 0:00:08]} 60. Rb6+ {[%emt 0:00:13]} Kxd5 {[%emt 0:00:45]} 61. Rg6 {[%emt 0:00:23]} Bg4 {[%emt 0:00:41]} 62. Rg5+ {[%emt 0:00:07]} Kd4 {[%emt 0:00:08]} 63. Rg8 {[%emt 0:00:06]} Ra2+ {[%emt 0:00:07]} 64. Kg1 {[%emt 0:00:05]} c4 {[%emt 0:00:13]} 65. Rd8+ {[%emt 0:00:16]} Ke3 {[%emt 0:00:27]} 66. Rf8 {[%emt 0:00:10]} c3 {[%emt 0:00:17]} 67. Re8+ {[%emt 0:00:13]} Kf3 {[%emt 0:00:30]} 68. Re1 {[%emt 0:00:09]} Kxg3 {[%emt 0:00:33]} 69. Rc1 {[%emt 0:00:14]} Bf3 {[%emt 0:00:20]} 70. Re1 {[%emt 0:00:07]} Rh2 {[%emt 0:00:17]} 0-1

[Event "1000GM Schev-C-A February 2024"]
[Site "Santa Clara"]
[Date "2024.02.25"]
[Round "4.5"]
[White "Arenas, David"]
[Black "Zhou, Ruoyu"]
[Result "1-0"]
[ECO "C50"]
[WhiteElo "2406"]
[BlackElo "2112"]
[Annotator "TA"]
[PlyCount "85"]
[EventDate "2024.02.13"]
[EventType "schev"]
[EventCountry "USA"]
[SourceTitle "playchess.com"]
[Source "ChessBase"]
[SourceQuality "1"]
[TimeControl "5400+30"]

{[%evp 9,85,11,21,0,0,0,0,-10,0,-28,0,0,0,0,0,0,34,32,66,58,38,41,58,55,45,40,85,0,25,31,53,55,52,46,71,81,77,67,154,153,147,168,171,162,328,361,415,378,552,335,598,587,643,661,766,685,687,662,657,575,795,770,864,791,766,758,687,602,907,729,732,703,641,685,662,649,588,617]} 1. e4 {[%emt 0:01:27]} e5 {[%emt 0:00:06]} 2. Nf3 {[%emt 0:00:10]} Nc6 {[%emt 0:00:07]} 3. Bc4 {[%emt 0:00:05]} Bc5 {[%emt 0:00:09]} 4. d3 {[%emt 0:00:15]} Nf6 {[%emt 0:00:23]} 5. Nc3 {[%emt 0:00:06]} a6 {[%emt 0:03:19]} 6. Be3 {[%emt 0:02:42]} Bxe3 {[%emt 0:02:27]} 7. fxe3 {[%emt 0:00:02]} d6 {[%emt 0:00:15]} 8. O-O {[%emt 0:00:09] The position is equal.} O-O {[%emt 0:01:20]} 9. Qe1 {[%emt 0:04:04]} Be6 {[%emt 0:02:44]} 10. Bb3 {[%emt 0:04:29]} Bxb3 {[%emt 0:01:33]} 11. axb3 {[%emt 0:00:08]} Ne7 {[%emt 0:11:57]} 12. Nh4 {[%emt 0:02:07]} Ng6 {[%emt 0:00:51]} 13. Nf5 {[%emt 0:00:10]} Re8 {[%emt 0:02:13]} 14. Qg3 {[%emt 0:00:59] White is more active.} c6 {[%emt 0:05:45]} 15. Rf2 {[%emt 0:09:36]} Re6 {[%emt 0:02:59]} 16. Raf1 {[%emt 0:00:49]} Rc8 {[%emt 0:07:49]} 17. Ne2 {[%emt 0:03:03]} d5 {[%emt 0:04:32] [#]} 18. Qf3 {[%emt 0:00:10]} (18. Qh3 $1 $16) 18... Rc7 {[%emt 0:05:53]} 19. Neg3 {[%emt 0:00:24]} Rd7 {[%emt 0:07:01]} 20. Qe2 {[%emt 0:00:39][%cal Of5g7] Threatens to win with Nxg7!} Ne8 {[%emt 0:05:12]} 21. Qg4 {[%emt 0:01:23]} Kh8 {[%emt 0:08:23]} 22. h4 {[%emt 0:17:52] Black is now going downhill.} Nf6 {[%emt 0:01:11]} 23. Qh3 {[%emt 0:01:37][%cal Of5g7] Nxg7! would now be deadly.} d4 {[%emt 0:05:07] [#]} (23... Ne8 $1 $14) 24. Nxg7 $1 $16 {[%emt 0:06:24][%mdl 512]} dxe3 {[%emt 0:03:59] [#]} (24... Kxg7 $2 25. Rxf6 Rxf6 26. Nh5+ Kf8 27. Nxf6 $18) 25. Rxf6 {[%emt 0:00:03][%mdl 512]} Rxf6 {[%emt 0:01:19]} 26. Rxf6 {[%emt 0:00:01]} Qxf6 $2 {[%emt 0:01:10]} (26... e2 {keeps fighting.} 27. Nxe2 Kxg7) 27. Qxd7 $18 {[%emt 0:00:11] Qe8+ would kill now.} Qxg7 {[%emt 0:03:19]} (27... Qf2+ $2 28. Kh2 Nxh4 29. Qd8+ Kxg7 30. Qxh4 $18) 28. Qxb7 $16 {[%emt 0:10:30][%mdl 4096] Endgame. KQN-KQN} Nf8 {[%emt 0:05:03]} (28... h5 $142 29. Qc8+ (29. Qxc6 Nxh4 30. Qc8+ Kh7 $16) (29. Nxh5 e2 $18) 29... Kh7) 29. Qb8 {[%emt 0:05:45] Black must now prevent Nf5.} Kg8 $2 {[%emt 0:01:54]} (29... e2 {was called for.} 30. Nxe2 Kg8) 30. Nf5 $1 $18 {[%emt 0:00:01][%csl LRe3,LRg7] White is clearly winning.} e2 {[%emt 0:01:51]} 31. Kf2 {[%emt 0:00:00]} (31. Nxg7 $2 {too greedy.} e1=Q+ (31... e1=R+ $2 {perishes.} 32. Kf2 $18) 32. Kh2 Qxh4+ (32... Kxg7 33. Qxe5+ Kg8 34. Qg5+ Kh8 35. Qf6+ Kg8 36. Qg5+ Kh8 37. Qf6+ Kg8 38. Qg5+ $11) 33. Kg1 Kxg7 $19) 31... Qf6 {[%emt 0:01:54]} 32. Kxe2 {[%emt 0:00:30]} h5 {[%emt 0:00:22]} 33. Qc8 {[%emt 0:02:59]} c5 {[%emt 0:00:22]} 34. g3 {[%emt 0:04:29]} a5 {[%emt 0:00:29][%cal Ba6a5,Ba5a4,Ba4b3][%mdl 32]} 35. Kf3 {[%emt 0:01:00]} Qe6 {[%emt 0:00:38]} 36. Qxc5 {[%emt 0:00:33]} Qf6 {[%emt 0:04:54]} 37. Qc8 {[%emt 0:00:33]} Qb6 {[%emt 0:00:00]} 38. Kg2 {[%emt 0:00:48]} a4 {[%emt 0:00:00] [#]} 39. Qc6 $3 {[%emt 0:01:55][%mdl 512]} Qxc6 {[%emt 0:00:00]} 40. Ne7+ {[%emt 0:00:01]} Kg7 {[%emt 0:00:00]} 41. Nxc6 {[%emt 0:00:02]} axb3 {[%emt 0:00:00]} 42. c3 {[%emt 0:00:35]} Kf6 {[%emt 0:00:00]} 43. Na5 {[%emt 0:00:07] Weighted Error Value: White=0.28 (precise) /Black=0.43.  Mistake:       	White=1     	Black=4      Inaccurate:     	White=2     	Black=4      OK:         	White=9     	Black=5      Best:        	White=2     	Black=1      Brilliant:      	White=2     	---} 1-0

[Event "1000GM Schev-C-A February 2024"]
[Site "Santa Clara"]
[Date "2024.02.26"]
[Round "5.1"]
[White "Tang, Dylan"]
[Black "Cardoso Cardoso, Jose Gabriel"]
[Result "0-1"]
[ECO "B55"]
[WhiteElo "2206"]
[BlackElo "2477"]
[Annotator "RC"]
[PlyCount "68"]
[EventDate "2024.02.13"]
[EventType "schev"]
[EventCountry "USA"]
[SourceTitle "playchess.com"]
[Source "ChessBase"]
[SourceQuality "1"]
[TimeControl "5400+30"]

1. e4 {[%emt 1:31:00]} c5 {[%emt 0:00:22]} 2. Nf3 {[%emt 0:00:00]} d6 {[%emt 0:00:08]} 3. d4 {[%emt 0:00:00]} cxd4 {[%emt 0:00:10]} 4. Nxd4 {[%emt 0:00:00]} Nf6 {[%emt 0:00:09]} 5. f3 {[%emt 0:00:00]} e5 {[%emt 0:00:28]} 6. Nb3 {[%emt 0:00:00]} Be6 {[%emt 0:00:09]} 7. c4 {[%emt 0:00:00]} a5 {[%emt 0:00:09]} 8. Be3 {[%emt 0:00:00]} Nc6 {[%emt 0:00:09]} 9. Nc3 {[%emt 0:00:00]} Be7 {[%emt 0:00:17]} 10. Be2 {[%emt 0:00:00]} a4 {[%emt 0:06:15]} 11. Nd2 {[%emt 0:00:00]} Nh5 {[%emt 0:01:24]} 12. g3 {[%emt 0:00:00]} Nd4 {[%emt 0:26:17]} 13. O-O {[%emt 0:00:00]} O-O {[%emt 0:09:41]} 14. Ndb1 {[%emt 0:00:00]} Qc7 {[%emt 0:08:09]} 15. Na3 {[%emt 0:00:00]} Rfc8 {[%emt 0:00:50]} 16. Rc1 {[%emt 0:00:00]} Qd8 {[%emt 0:02:34]} 17. Kh1 {[%emt 0:00:00]} Nxe2 {[%emt 0:41:49]} 18. Qxe2 {[%emt 0:00:00]} Nf6 {[%emt 0:00:00]} 19. Rfd1 {[%emt 0:00:00]} Qf8 {[%emt 0:00:00]} 20. Nd5 {[%emt 0:00:00]} Nxd5 {[%emt 0:01:30]} 21. cxd5 {[%emt 0:00:00]} Bd7 {[%emt 0:00:00]} 22. Qf2 {[%emt 0:00:00]} b5 {[%emt 0:00:00]} 23. Nc2 {[%emt 0:00:00]} f5 {[%emt 0:00:00]} 24. Nb4 {[%emt 0:00:00]} fxe4 {[%emt 0:00:00]} 25. fxe4 {[%emt 0:00:00]} Qxf2 {[%emt 0:00:00]} 26. Bxf2 {[%emt 0:00:00]} Bg4 {[%emt 0:00:00]} 27. Re1 {[%emt 0:00:00]} Rxc1 {[%emt 0:00:00]} 28. Rxc1 {[%emt 0:00:00]} Bf3+ {[%emt 0:00:00]} 29. Kg1 {[%emt 0:00:00]} Bxe4 {[%emt 0:00:00]} 30. Rc7 {[%emt 0:00:00]} Bg5 {[%emt 0:00:00]} 31. Rc6 {[%emt 0:00:00]} a3 {[%emt 0:00:00]} 32. bxa3 {[%emt 0:00:00]} Rxa3 {[%emt 0:00:00]} 33. Rxd6 {[%emt 0:00:00]} Be7 {[%emt 0:00:00]} 34. Bc5 {[%emt 0:00:00]} Rc3 {[%emt 0:00:00]} 0-1

[Event "1000GM Schev-C-A February 2024"]
[Site "Santa Clara"]
[Date "2024.02.26"]
[Round "5.2"]
[White "Zuluaga Mancilla, Cesar"]
[Black "Min, Ryan"]
[Result "1-0"]
[ECO "E68"]
[WhiteElo "2251"]
[BlackElo "2063"]
[Annotator "TA"]
[PlyCount "79"]
[EventDate "2024.02.13"]
[EventType "schev"]
[EventCountry "USA"]
[SourceTitle "playchess.com"]
[Source "ChessBase"]
[SourceQuality "1"]
[TimeControl "5400+30"]

{[%evp 17,79,52,77,27,42,54,54,42,53,48,67,40,107,59,157,84,75,70,77,0,26,0,0,0,20,21,444,436,687,647,621,656,709,666,687,573,635,624,637,637,646,657,902,585,1003,983,992,1043,1025,1066,1051,939,965,938,964,954,1039,992,964,963,954,961,1002,986]} 1. d4 {[%emt 0:00:30]} Nf6 {[%emt 0:00:06]} 2. Nf3 {[%emt 0:00:11]} g6 {[%emt 0:00:05]} 3. c4 {[%emt 0:00:08]} Bg7 {[%emt 0:00:05]} 4. Nc3 {[%emt 0:00:16]} d6 {[%emt 0:00:13]} 5. g3 {[%emt 0:00:27]} O-O {[%emt 0:00:06]} 6. Bg2 {[%emt 0:00:03]} Nbd7 {[%emt 0:00:07]} 7. h3 {[%emt 0:00:06]} e5 {[%emt 0:00:09]} 8. O-O {[%emt 0:00:07]} h6 {[%emt 0:00:09]} 9. e4 {[%emt 0:00:08]} Nh7 {[%emt 0:00:04]} 10. dxe5 {[%emt 0:02:07]} (10. Be3 $16) 10... dxe5 {[%emt 0:00:32]} 11. Be3 {[%emt 0:04:27]} c6 {[%emt 0:11:32]} 12. Qc1 {[%emt 0:00:47] Weiß steht etwas besser.} h5 {[%emt 0:01:13]} 13. Rd1 {[%emt 0:01:39]} Qe7 {[%emt 0:01:10]} 14. Rb1 {[%emt 0:02:09][%cal Oc4c5] Weiß steht deutlich aktiver.} a5 {[%emt 0:04:02] [#]} (14... Nc5 $14) 15. c5 {[%emt 0:00:42]} f5 {[%emt 0:17:44]} (15... Nxc5 16. Nd5 cxd5 17. Bxc5 $18 (17. Qxc5 Qxc5 18. Bxc5 Re8 $18)) (15... a4 $14) 16. Na4 {[%emt 0:13:12]} (16. Nh4 $142 Qe8 17. exf5 gxf5 18. Bh6) 16... f4 $16 {[%emt 0:12:44]} 17. Qc4+ $1 {[%emt 0:02:20]} (17. gxf4 exf4 18. Qc4+ (18. Bxf4 Qxe4 19. Bh6 Qxa4 $17) 18... Kh8 $17) 17... Kh8 {[%emt 0:00:05] [#]} 18. Nh4 {[%emt 0:03:18]} Qe8 $1 $11 {[%emt 0:05:01]} 19. gxf4 {[%emt 0:08:32]} exf4 {[%emt 0:02:44]} 20. Bd4 $36 {[%emt 0:00:05][%mdl 2048] Weiss hat gut koordiniertes Spiel.} Ne5 {[%emt 0:03:57]} 21. Qc3 {[%emt 0:00:02]} g5 $2 {[%emt 0:07:48][%mdl 8192] [#] Danach kann Schwarz die Partie nicht mehr halten.} (21... Rg8 $11 {und Schwarz steht sicher.}) 22. Bxe5 $1 $18 {[%emt 0:02:09] Weiß steht klar auf Gewinn.} (22. Nb6 gxh4 23. Nc4 (23. Nxa8 $2 Ng5 $19) 23... f3 24. Bxe5 Rg8 (24... Bxe5 $2 25. Nxe5 Nf6 26. Nxf3 $18) 25. Bxg7+ Rxg7 26. Qxf3 Be6 $15) 22... Nf6 {[%emt 0:08:00]} (22... Bxe5 $142 23. Qxe5+ Qxe5 24. Ng6+ Kg7 25. Nxe5 f3) 23. Nf5 {[%emt 0:05:15]} Bxf5 {[%emt 0:00:31]} 24. exf5 {[%emt 0:00:05]} Rd8 {[%emt 0:01:43]} 25. Nb6 {[%emt 0:00:12][%cal Ba4b6,Bb6c4,Bc4d6][%mdl 32]} g4 {[%emt 0:02:24]} 26. Re1 {[%emt 0:02:33]} Qf7 {[%emt 0:00:27]} 27. Nc4 {[%emt 0:00:15]} f3 {[%emt 0:02:45]} 28. Bf1 {[%emt 0:00:02][%cal Bg2f1,Bf1c4,Bc4d5][%mdl 32]} Rd5 {[%emt 0:00:10]} 29. Nd6 {[%emt 0:00:32]} Qg8 {[%emt 0:00:49]} 30. Kh1 {[%emt 0:03:45] Bc4 wäre nun fies.} b6 {[%emt 0:02:12]} 31. Bc4 {[%emt 0:03:05]} bxc5 {[%emt 0:01:21]} 32. Bxd5 {[%emt 0:00:16]} cxd5 {[%emt 0:00:22]} 33. Qxc5 {[%emt 0:01:19]} Nd7 {[%emt 0:03:19]} 34. Bxg7+ {[%emt 0:00:15]} ({Weniger gut wäre} 34. Qxa5 Bxe5 35. Qd2 Qg7 $18) 34... Qxg7 {[%emt 0:00:04]} 35. Qxd5 {[%emt 0:01:32]} Nf6 {[%emt 0:01:34]} 36. Qe5 {[%emt 0:05:04]} Qg5 {[%emt 0:01:00]} 37. Ne4 {[%emt 0:00:21]} Qh4 {[%emt 0:00:37]} 38. Qg3 {[%emt 0:00:08]} (38. Qxa5 $2 {ist ein Selbstmatt.} Qxh3+ 39. Kg1 Qg2#) 38... Qxg3 {[%emt 0:00:11]} 39. Nxg3 {[%emt 0:00:25]} h4 {[%emt 0:00:05]} 40. Ne4 {[%emt 0:00:27] Gewichteter Fehlerwert: Weiß=0.26 (präzise) /Schwarz=0.62.  Verlustzug:     	---       	Schwarz=1     Fehler:       	Weiß=3     	Schwarz=3     Ungenau:       	Weiß=2     	---        OK:         	Weiß=3     	Schwarz=3     Bester:       	---       	Schwarz=1     Stark:        	Weiß=2     	Schwarz=1} 1-0

[Event "1000GM Schev-C-A February 2024"]
[Site "Santa Clara"]
[Date "2024.02.26"]
[Round "5.3"]
[White "Delgado Ramirez, Neuris"]
[Black "Atwell, Rose"]
[Result "1/2-1/2"]
[ECO "B10"]
[WhiteElo "2517"]
[BlackElo "2104"]
[Annotator "TA"]
[PlyCount "110"]
[EventDate "2024.02.13"]
[EventType "schev"]
[EventCountry "USA"]
[SourceTitle "playchess.com"]
[Source "ChessBase"]
[SourceQuality "1"]
[TimeControl "5400+30"]

{[%evp 9,110,-26,-18,-29,-3,-24,-11,-20,-14,-18,-15,-26,-15,-32,-26,-25,6,0,0,0,-3,-12,0,0,0,0,0,-16,-12,-7,0,0,0,0,16,33,17,24,31,18,46,57,62,77,127,128,268,141,157,157,157,157,157,157,157,157,157,157,157,157,157,157,157,157,157,157,157,157,157,157,157,157,157,157,157,157,157,157,157,157,157,157,157,157,157,157,157,157,157,157,157,157,157,157,157,150,150,150,150,150,150,0,150]} 1. e4 {[%emt 0:07:10]} e5 {[%emt 0:00:04]} 2. Nf3 {[%emt 0:00:07]} Nf6 {[%emt 0:00:05]} 3. d3 {[%emt 0:01:36]} c6 {[%emt 0:03:48]} 4. c3 {[%emt 0:01:12]} Qc7 {[%emt 0:02:14]} 5. Nbd2 {[%emt 0:00:26]} d5 {[%emt 0:05:32]} 6. Be2 {[%emt 0:03:16]} Be7 {[%emt 0:03:31]} 7. O-O {[%emt 0:00:11]} O-O {[%emt 0:00:10]} 8. Re1 {[%emt 0:00:11]} Nbd7 {[%emt 0:07:43]} 9. Qc2 {[%emt 0:00:25]} Re8 {[%emt 0:01:56]} 10. Bf1 {[%emt 0:02:07]} Bf8 {[%emt 0:02:36]} 11. h3 {[%emt 0:00:34]} a5 {[%emt 0:10:33]} 12. b3 {[%emt 0:00:21]} dxe4 {[%emt 0:03:34]} 13. Nxe4 {[%emt 0:01:42]} Nxe4 {[%emt 0:00:16]} 14. dxe4 {[%emt 0:00:13]} Nc5 {[%emt 0:03:39]} 15. Rb1 {[%emt 0:02:41]} f6 {[%emt 0:03:41]} 16. a3 {[%emt 0:02:32]} Be6 {[%emt 0:03:48]} 17. b4 {[%emt 0:00:46]} Nd7 {[%emt 0:01:53]} 18. Be3 {[%emt 0:10:14]} axb4 {[%emt 0:06:01]} 19. axb4 {[%emt 0:00:08]} Ra2 {[%emt 0:01:04]} 20. Rb2 {[%emt 0:00:30]} Rea8 {[%emt 0:00:14]} 21. Nd2 {[%emt 0:05:35]} c5 {[%emt 0:09:24]} 22. Bc4 {[%emt 0:00:58]} Bxc4 {[%emt 0:00:24]} 23. Nxc4 {[%emt 0:00:05]} Rxb2 {[%emt 0:02:34]} 24. Qxb2 {[%emt 0:01:04]} cxb4 {[%emt 0:03:24]} 25. Qb3 {[%emt 0:00:11]} Kh8 {[%emt 0:00:15] Threatens to win with ...b5.} 26. cxb4 {[%emt 0:00:08]} Qc6 {[%emt 0:02:47]} (26... b5 $142 27. Na5 Rc8 (27... Bxb4 $2 28. Qxb4 Qxa5 29. Qxa5 $18)) 27. Rd1 $16 {[%emt 0:01:33] Black must now prevent Na5.} h6 {[%emt 0:02:34] [#]} (27... b6 $16 28. Nd6 Bxd6) 28. Qd3 {[%emt 0:04:39]} (28. Na5 $1 $18 {[%cal Ra5c6]} Qc7 29. Qf7) 28... Bxb4 {[%emt 0:02:24]} 29. Qxd7 {[%emt 0:00:28]} Qxc4 {[%emt 0:00:08]} 30. Qxb7 {[%emt 0:00:16]} Rc8 {[%emt 0:03:41]} 31. Rc1 {[%emt 0:03:20] White is much more active.} Qxc1+ {[%emt 0:01:02]} 32. Bxc1 {[%emt 0:00:05]} Rxc1+ {[%emt 0:00:04][%mdl 4096] Endgame. KQ-KRB} 33. Kh2 {[%emt 0:00:09]} Bc5 {[%emt 0:00:49]} 34. Qb2 {[%emt 0:00:53]} Rf1 {[%emt 0:01:12]} 35. Qb5 {[%emt 0:00:33][%csl LRc5,LRf1]} Rc1 {[%emt 0:00:16]} 36. Qe2 {[%emt 0:00:04]} Rc3 {[%emt 0:00:16]} 37. h4 {[%emt 0:00:56][%cal Bh3h4,Bh4h5][%mdl 32]} Bd4 {[%emt 0:00:45]} 38. h5 {[%emt 0:00:56]} Rb3 {[%emt 0:00:09]} 39. Qc4 {[%emt 0:00:25]} Rc3 {[%emt 0:00:20]} 40. Qb4 {[%emt 0:01:22]} Rc2 {[%emt 0:00:59]} 41. f3 {[%emt 0:00:27]} Kh7 {[%emt 0:00:23]} 42. Qf8 {[%emt 0:00:32]} Rb2 {[%emt 0:00:23]} 43. Qf7 {[%emt 0:00:38]} Rc2 {[%emt 0:01:04]} 44. Kh3 {[%emt 0:00:16]} Rb2 {[%emt 0:00:39]} 45. g3 {[%emt 0:00:15]} Rc2 {[%emt 0:00:32]} 46. Kg4 {[%emt 0:00:11]} Rf2 {[%emt 0:00:53]} 47. Qd7 {[%emt 0:01:44]} Rb2 {[%emt 0:00:49]} 48. Qf5+ {[%emt 0:00:48]} Kh8 {[%emt 0:00:08]} 49. Qc8+ {[%emt 0:00:14]} Kh7 {[%emt 0:00:12]} 50. Kf5 {[%emt 0:00:18]} Rb6 {[%emt 0:00:48]} 51. f4 {[%emt 0:00:31]} Rd6 {[%emt 0:00:34]} 52. Qe8 {[%emt 0:01:49]} Rb6 {[%emt 0:00:34]} 53. Qg6+ {[%emt 0:01:32]} Kh8 {[%emt 0:00:06]} 54. Qf7 {[%emt 0:00:31]} Kh7 {[%emt 0:00:17]} 55. Qg6+ {[%emt 0:00:31]} Kh8 $1 {[%emt 0:00:03] Weighted Error Value: White=0.10 (very precise) /Black=0.06 (flawless) .  Mistake:       	White=1     	Black=2      Inaccurate:     	---       	Black=3      OK:         	White=26    	Black=16     Best:        	White=2     	Black=2      Strong:       	---       	Black=1} 1/2-1/2

[Event "1000GM Schev-C-A February 2024"]
[Site "Santa Clara"]
[Date "2024.02.26"]
[Round "5.4"]
[White "Rajaram, Rohan"]
[Black "Arenas, David"]
[Result "1/2-1/2"]
[ECO "E01"]
[WhiteElo "2151"]
[BlackElo "2406"]
[Annotator "TA"]
[PlyCount "40"]
[EventDate "2024.02.13"]
[EventType "schev"]
[EventCountry "USA"]
[SourceTitle "playchess.com"]
[Source "ChessBase"]
[SourceQuality "1"]
[TimeControl "5400+30"]

{[%evp 9,40,39,34,47,43,25,56,37,48,41,51,42,29,31,46,0,0,0,0,0,30,28,22,26,31,26,28,0,0,0,0,0,9]} 1. d4 {[%emt 0:02:11]} Nf6 {[%emt 0:05:52]} 2. c4 {[%emt 0:00:07]} e6 {[%emt 0:00:08]} 3. g3 {[%emt 0:00:05]} d5 {[%emt 0:00:31]} 4. Bg2 {[%emt 0:00:11]} h6 {[%emt 0:00:13]} 5. Nf3 {[%emt 0:00:40]} Bd6 {[%emt 0:00:07]} 6. O-O {[%emt 0:00:07]} O-O {[%emt 0:00:18]} 7. Qc2 {[%emt 0:00:12]} Nc6 {[%emt 0:00:41]} 8. Nbd2 {[%emt 0:00:58] White is slightly better.} Re8 {[%emt 0:08:21]} 9. Rd1 {[%emt 0:03:41]} b6 {[%emt 0:03:46]} 10. e4 {[%emt 0:01:22] [#] Threatens to win with e5.} dxe4 {[%emt 0:02:29]} 11. Nxe4 {[%emt 0:00:10][%cal Of3e5] Ne5! is the strong threat.} Bb7 {[%emt 0:00:26]} 12. Nxd6 {[%emt 0:04:51]} (12. Nc3 $14) 12... cxd6 $11 {[%emt 0:00:20]} 13. b3 {[%emt 0:05:06]} Rc8 {[%emt 0:00:19]} 14. Bb2 {[%emt 0:02:02]} Nb8 {[%emt 0:00:22]} 15. Qe2 {[%emt 0:00:48]} Nbd7 {[%emt 0:00:14]} 16. Rac1 {[%emt 0:01:30]} Qc7 {[%emt 0:00:44]} 17. Re1 {[%emt 0:05:47]} Qb8 {[%emt 0:00:20]} 18. Nd2 {[%emt 0:01:32]} Bxg2 {[%emt 0:00:18] The position is equal.} 19. Kxg2 {[%emt 0:00:07]} Qb7+ {[%emt 0:02:41]} 20. Qf3 {[%emt 0:06:40]} Qxf3+ {[%emt 0:00:49] Weighted Error Value: White=0.10 (very precise) /Black=0.06 (flawless) .  Mistake:       	White=1     	---        Inaccurate:     	White=1     	Black=2      OK:         	White=2     	Black=6} 1/2-1/2